[Event "*** Titled Tuesday Blitz"]
[Site "Chess.com"]
[Date "2019.09.03"]
[Round "4"]
[White "ENEASZ"]
[Black "vanyakuba"]
[Result "1-0"]
[WhiteElo "2550"]
[BlackElo "2357"]
[TimeControl "180+2"]
[EndTime "15:52:06 PDT"]
[Termination "ENEASZ won by checkmate"]

1. e4 {[%clk 0:03:01.9]} 1... d5 {[%clk 0:03:01.2]} 2. exd5 {[%clk 0:02:58.6]}
2... Qxd5 {[%clk 0:03:02.7]} 3. Nc3 {[%clk 0:02:59.6]} 3... Qa5 {[%clk
0:03:03.7]} 4. d4 {[%clk 0:03:01]} 4... Nf6 {[%clk 0:03:05]} 5. Bc4 {[%clk
0:03:01.7]} 5... Nc6 {[%clk 0:03:05.1]} 6. a3 {[%clk 0:02:48.7]} 6... Bg4 {[%clk
0:02:57.7]} 7. f3 {[%clk 0:02:48.6]} 7... Be6 {[%clk 0:02:58.6]} 8. Bxe6 {[%clk
0:02:48.4]} 8... fxe6 {[%clk 0:02:59.9]} 9. Be3 {[%clk 0:02:44.8]} 9... O-O-O
{[%clk 0:03:00.2]} 10. Qe2 {[%clk 0:02:45.5]} 10... e5 {[%clk 0:02:49.9]} 11.
dxe5 {[%clk 0:02:42.3]} 11... Qxe5 {[%clk 0:02:11.9]} 12. Nh3 {[%clk 0:02:40.7]}
12... h6 {[%clk 0:01:51.5]} 13. Nf4 {[%clk 0:02:38.2]} 13... Qf5 {[%clk
0:01:42.3]} 14. Nd3 {[%clk 0:02:30.7]} 14... e5 {[%clk 0:01:40.4]} 15. O-O-O
{[%clk 0:02:30.6]} 15... Nd4 {[%clk 0:01:23.1]} 16. Bxd4 {[%clk 0:02:31.3]}
16... exd4 {[%clk 0:01:24.4]} 17. Ne4 {[%clk 0:02:32]} 17... Nxe4 {[%clk
0:01:25.4]} 18. fxe4 {[%clk 0:02:21.7]} 18... Qg5+ {[%clk 0:01:25.9]} 19. Kb1
{[%clk 0:02:22.3]} 19... Be7 {[%clk 0:01:15.5]} 20. e5 {[%clk 0:02:20.4]} 20...
Rhf8 {[%clk 0:01:14.1]} 21. Rhf1 {[%clk 0:02:20]} 21... h5 {[%clk 0:00:54.4]}
22. Qe4 {[%clk 0:02:19.1]} 22... c5 {[%clk 0:00:33]} 23. b3 {[%clk 0:02:12.9]}
23... c4 {[%clk 0:00:19.5]} 24. bxc4 {[%clk 0:02:13.3]} 24... Bxa3 {[%clk
0:00:20.6]} 25. c5 {[%clk 0:02:07.4]} 25... Qe7 {[%clk 0:00:19.8]} 26. Rxf8
{[%clk 0:02:04.4]} 26... Qxf8 {[%clk 0:00:21]} 27. c6 {[%clk 0:01:59.7]} 27...
Qe7 {[%clk 0:00:15.7]} 28. Ka2 {[%clk 0:01:56.8]} 28... b5 {[%clk 0:00:09.6]}
29. Rf1 {[%clk 0:01:40.5]} 29... b4 {[%clk 0:00:05]} 30. e6 {[%clk 0:01:24.7]}
30... Rd6 {[%clk 0:00:03.5]} 31. Nc5 {[%clk 0:01:16.4]} 31... b3+ {[%clk
0:00:03.6]} 32. Nxb3 {[%clk 0:01:16.6]} 32... Rxe6 {[%clk 0:00:03.9]} 33. Qf5
{[%clk 0:01:06.6]} 33... g6 {[%clk 0:00:05.2]} 34. Qb5 {[%clk 0:00:52.9]} 34...
Re5 {[%clk 0:00:03]} 35. Qa6+ {[%clk 0:00:50.8]} 35... Kd8 {[%clk 0:00:02.4]}
36. Qxa3 {[%clk 0:00:52.3]} 36... Qxa3+ {[%clk 0:00:03]} 37. Kxa3 {[%clk
0:00:54.2]} 37... Re2 {[%clk 0:00:03.6]} 38. Nxd4 {[%clk 0:00:54.8]} 38... Rxg2
{[%clk 0:00:05]} 39. Rf7 {[%clk 0:00:54.7]} 39... Rxh2 {[%clk 0:00:05.5]} 40.
Ne6+ {[%clk 0:00:55.8]} 40... Kc8 {[%clk 0:00:06.9]} 41. Rf8# {[%clk 0:00:56.8]}
1-0

[Event "*** Titled Tuesday Blitz"]
[Site "Chess.com"]
[Date "2019.09.03"]
[Round "4"]
[White "patrisiii123"]
[Black "fmshawnrl123"]
[Result "1-0"]
[WhiteElo "2390"]
[BlackElo "2655"]
[TimeControl "180+2"]
[EndTime "15:52:07 PDT"]
[Termination "patrisiii123 won by checkmate"]

1. e4 {[%clk 0:03:01.9]} 1... c6 {[%clk 0:03:00.9]} 2. d4 {[%clk 0:03:02.6]}
2... d5 {[%clk 0:03:02.8]} 3. exd5 {[%clk 0:03:04.5]} 3... cxd5 {[%clk
0:03:04.7]} 4. Bd3 {[%clk 0:03:05.9]} 4... Nc6 {[%clk 0:03:06.1]} 5. c3 {[%clk
0:03:07.5]} 5... Qc7 {[%clk 0:03:07.6]} 6. h3 {[%clk 0:03:05.7]} 6... g6 {[%clk
0:03:08.7]} 7. Nf3 {[%clk 0:03:07.1]} 7... Bg7 {[%clk 0:03:10.3]} 8. O-O {[%clk
0:03:07.5]} 8... Nf6 {[%clk 0:03:11.9]} 9. Bg5 {[%clk 0:03:07.7]} 9... O-O
{[%clk 0:03:13.2]} 10. Bh4 {[%clk 0:03:08.8]} 10... Bf5 {[%clk 0:03:14.2]} 11.
Bg3 {[%clk 0:03:09.3]} 11... Qd7 {[%clk 0:03:13.1]} 12. Bb5 {[%clk 0:03:04.9]}
12... Ne4 {[%clk 0:03:12.7]} 13. Ne5 {[%clk 0:03:02.6]} 13... Qc8 {[%clk
0:03:13.6]} 14. Bh2 {[%clk 0:03:01.9]} 14... Nxe5 {[%clk 0:03:13.6]} 15. Bxe5
{[%clk 0:03:00.5]} 15... Bxe5 {[%clk 0:03:12.9]} 16. dxe5 {[%clk 0:03:02.4]}
16... Rd8 {[%clk 0:03:12.3]} 17. Nd2 {[%clk 0:02:57.3]} 17... Qc7 {[%clk
0:03:03.6]} 18. Nf3 {[%clk 0:02:56.4]} 18... Rac8 {[%clk 0:02:56.2]} 19. Qd4
{[%clk 0:02:41.2]} 19... Nc5 {[%clk 0:02:52.5]} 20. Rfd1 {[%clk 0:02:16.3]}
20... Ne6 {[%clk 0:02:48.3]} 21. Qxa7 {[%clk 0:01:54.8]} 21... Nc5 {[%clk
0:02:48.7]} 22. Qa3 {[%clk 0:01:50.1]} 22... Be4 {[%clk 0:02:49.2]} 23. Be2
{[%clk 0:01:29.7]} 23... Bxf3 {[%clk 0:02:47.3]} 24. Bxf3 {[%clk 0:01:31.6]}
24... Qxe5 {[%clk 0:02:48.9]} 25. Qb4 {[%clk 0:01:22.3]} 25... h5 {[%clk
0:02:40.7]} 26. Rd4 {[%clk 0:01:15.8]} 26... Ne6 {[%clk 0:02:35.6]} 27. Rdd1
{[%clk 0:01:15.6]} 27... Ng5 {[%clk 0:02:31.4]} 28. Rd3 {[%clk 0:01:05.1]} 28...
Rd7 {[%clk 0:02:23.5]} 29. Rad1 {[%clk 0:00:51.3]} 29... e6 {[%clk 0:02:16.4]}
30. a4 {[%clk 0:00:45.1]} 30... Rc4 {[%clk 0:02:02.2]} 31. Qxc4 {[%clk 0:00:27]}
31... dxc4 {[%clk 0:02:04.1]} 32. Rxd7 {[%clk 0:00:28.9]} 32... Nxf3+ {[%clk
0:01:57.3]} 33. gxf3 {[%clk 0:00:30.8]} 33... Qg5+ {[%clk 0:01:58.8]} 34. Kf1
{[%clk 0:00:29.8]} 34... Qf5 {[%clk 0:01:54.9]} 35. Kg2 {[%clk 0:00:29.4]} 35...
Qc2 {[%clk 0:01:56.5]} 36. R1d2 {[%clk 0:00:28.9]} 36... Qxa4 {[%clk 0:01:52.1]}
37. Rxb7 {[%clk 0:00:26.5]} 37... Qa5 {[%clk 0:01:52.5]} 38. Rdd7 {[%clk
0:00:24.8]} 38... Qg5+ {[%clk 0:01:53.6]} 39. Kh1 {[%clk 0:00:22.8]} 39... Qf4
{[%clk 0:01:42.9]} 40. Kg2 {[%clk 0:00:23.5]} 40... g5 {[%clk 0:01:38.3]} 41.
Rd4 {[%clk 0:00:15.2]} 41... Qe5 {[%clk 0:01:28.2]} 42. Rxc4 {[%clk 0:00:16.3]}
42... f5 {[%clk 0:01:02.8]} 43. Rc8# {[%clk 0:00:15.4]} 1-0

[Event "*** Titled Tuesday Blitz"]
[Site "Chess.com"]
[Date "2019.09.03"]
[Round "4"]
[White "DenishevM"]
[Black "ZeroRealtorFade"]
[Result "1-0"]
[WhiteElo "2547"]
[BlackElo "2356"]
[TimeControl "180+2"]
[EndTime "15:52:09 PDT"]
[Termination "DenishevM won on time"]

1. e4 {[%clk 0:03:01.9]} 1... Nc6 {[%clk 0:02:59.8]} 2. Nf3 {[%clk 0:02:59.9]}
2... d6 {[%clk 0:03:00.2]} 3. d4 {[%clk 0:03:00.9]} 3... Nf6 {[%clk 0:03:00.8]}
4. Nc3 {[%clk 0:03:01.7]} 4... g6 {[%clk 0:03:01.8]} 5. d5 {[%clk 0:02:54.8]}
5... Nb8 {[%clk 0:03:02.3]} 6. Bd3 {[%clk 0:02:54.7]} 6... Bg7 {[%clk
0:03:03.1]} 7. O-O {[%clk 0:02:56]} 7... O-O {[%clk 0:03:04.1]} 8. h3 {[%clk
0:02:54.6]} 8... c6 {[%clk 0:03:04.6]} 9. Re1 {[%clk 0:02:54]} 9... Nbd7 {[%clk
0:03:01]} 10. Be3 {[%clk 0:02:50.6]} 10... cxd5 {[%clk 0:02:53.8]} 11. exd5
{[%clk 0:02:47.4]} 11... Nb6 {[%clk 0:02:47.8]} 12. Be2 {[%clk 0:02:32.9]} 12...
Bd7 {[%clk 0:02:33.1]} 13. Bd4 {[%clk 0:02:23.4]} 13... Rc8 {[%clk 0:02:21.8]}
14. a4 {[%clk 0:02:19.6]} 14... a6 {[%clk 0:02:14.1]} 15. b3 {[%clk 0:02:13.5]}
15... Re8 {[%clk 0:02:10.8]} 16. a5 {[%clk 0:02:01.2]} 16... Na8 {[%clk
0:02:09.2]} 17. Bc4 {[%clk 0:02:01.8]} 17... Nc7 {[%clk 0:02:05]} 18. Bb6 {[%clk
0:01:59.9]} 18... Ra8 {[%clk 0:01:54.2]} 19. Nd4 {[%clk 0:01:52.9]} 19... Qc8
{[%clk 0:01:51.3]} 20. Qd3 {[%clk 0:01:29.3]} 20... e5 {[%clk 0:01:48.9]} 21.
dxe6 {[%clk 0:01:27.3]} 21... Nxe6 {[%clk 0:01:49.3]} 22. Nxe6 {[%clk
0:01:25.3]} 22... Bxe6 {[%clk 0:01:49]} 23. Bxe6 {[%clk 0:00:58.5]} 23... Rxe6
{[%clk 0:01:50.9]} 24. Rxe6 {[%clk 0:00:56]} 24... Qxe6 {[%clk 0:01:52]} 25. Rd1
{[%clk 0:00:57.9]} 25... Rc8 {[%clk 0:01:31]} 26. Bd4 {[%clk 0:00:56.4]} 26...
Rc6 {[%clk 0:00:58.8]} 27. Bxf6 {[%clk 0:00:53]} 27... Bxf6 {[%clk 0:00:57.3]}
28. Nd5 {[%clk 0:00:54.9]} 28... Bd8 {[%clk 0:00:56.8]} 29. b4 {[%clk
0:00:51.8]} 29... f5 {[%clk 0:00:40.1]} 30. c4 {[%clk 0:00:50.4]} 30... Qe4
{[%clk 0:00:36.4]} 31. Qxe4 {[%clk 0:00:42.4]} 31... fxe4 {[%clk 0:00:38.3]} 32.
Rd4 {[%clk 0:00:44.3]} 32... b6 {[%clk 0:00:16.8]} 33. axb6 {[%clk 0:00:43.2]}
33... Bxb6 {[%clk 0:00:18.7]} 34. Ne7+ {[%clk 0:00:44.6]} 1-0

[Event "*** Titled Tuesday Blitz"]
[Site "Chess.com"]
[Date "2019.09.03"]
[Round "4"]
[White "xberli"]
[Black "Caisachess"]
[Result "0-1"]
[WhiteElo "2453"]
[BlackElo "2281"]
[TimeControl "180+2"]
[EndTime "15:52:15 PDT"]
[Termination "Caisachess won by resignation"]

1. e4 {[%clk 0:03:01.9]} 1... e5 {[%clk 0:03:00.3]} 2. Nf3 {[%clk 0:03:02.4]}
2... Nc6 {[%clk 0:03:01.7]} 3. Bb5 {[%clk 0:03:03.9]} 3... f5 {[%clk 0:03:01.2]}
4. d3 {[%clk 0:03:04.3]} 4... fxe4 {[%clk 0:03:00.6]} 5. dxe4 {[%clk 0:03:06.2]}
5... Nf6 {[%clk 0:03:02.2]} 6. O-O {[%clk 0:03:07.3]} 6... Bc5 {[%clk
0:03:03.7]} 7. Qd3 {[%clk 0:03:06.5]} 7... d6 {[%clk 0:03:04.9]} 8. Qc4 {[%clk
0:02:55.9]} 8... Qe7 {[%clk 0:03:04.4]} 9. Nc3 {[%clk 0:02:54.3]} 9... Bd7
{[%clk 0:03:04.3]} 10. Bg5 {[%clk 0:02:53.1]} 10... Qf7 {[%clk 0:02:52.9]} 11.
Nd5 {[%clk 0:02:45.3]} 11... Nxd5 {[%clk 0:02:10.9]} 12. exd5 {[%clk 0:02:47.2]}
12... Nd4 {[%clk 0:02:12]} 13. Bxd7+ {[%clk 0:01:52.5]} 13... Qxd7 {[%clk
0:02:11]} 14. Nxe5 {[%clk 0:01:04.7]} 14... Qf5 {[%clk 0:02:05.7]} 15. c3 {[%clk
0:00:55.5]} 15... b5 {[%clk 0:01:55.2]} 16. Qd3 {[%clk 0:00:56.3]} 16... dxe5
{[%clk 0:01:45.8]} 17. Qe3 {[%clk 0:00:29.9]} 17... Ne6 {[%clk 0:01:36.7]} 18.
Qe2 {[%clk 0:00:31]} 18... Nxg5 {[%clk 0:01:20.9]} 19. Qxb5+ {[%clk 0:00:31.8]}
19... Qd7 {[%clk 0:01:17.6]} 20. Qxc5 {[%clk 0:00:32.5]} 20... Qd6 {[%clk
0:01:10.3]} 21. Qb5+ {[%clk 0:00:31.1]} 21... Qd7 {[%clk 0:01:01.5]} 22. Qc5
{[%clk 0:00:31.3]} 22... Nf7 {[%clk 0:00:45.6]} 23. f4 {[%clk 0:00:24.2]} 23...
e4 {[%clk 0:00:45.5]} 24. f5 {[%clk 0:00:21.2]} 24... Nd6 {[%clk 0:00:41.2]} 25.
f6 {[%clk 0:00:20.7]} 25... O-O {[%clk 0:00:41.6]} 26. fxg7 {[%clk 0:00:21.9]}
26... Qxg7 {[%clk 0:00:42.5]} 27. Qe3 {[%clk 0:00:21.8]} 27... Rae8 {[%clk
0:00:40.2]} 28. b3 {[%clk 0:00:20.5]} 28... Kh8 {[%clk 0:00:40.8]} 29. c4 {[%clk
0:00:20.7]} 29... Qe5 {[%clk 0:00:39.3]} 30. Kh1 {[%clk 0:00:20.9]} 30... Nf5
{[%clk 0:00:40.1]} 31. Qg5 {[%clk 0:00:20.3]} 31... e3 {[%clk 0:00:38.2]} 32.
Rae1 {[%clk 0:00:20.7]} 32... e2 {[%clk 0:00:36.6]} 33. Rf3 {[%clk 0:00:21.5]}
33... Qf6 {[%clk 0:00:24.3]} 34. Qd2 {[%clk 0:00:20.7]} 34... Qd4 {[%clk
0:00:21.4]} 35. Qg5 {[%clk 0:00:20.5]} 35... Qd1 {[%clk 0:00:21.6]} 0-1

[Event "*** Titled Tuesday Blitz"]
[Site "Chess.com"]
[Date "2019.09.03"]
[Round "4"]
[White "bugsbunny444"]
[Black "Kanthecarowin"]
[Result "0-1"]
[WhiteElo "2541"]
[BlackElo "2387"]
[TimeControl "180+2"]
[EndTime "15:52:22 PDT"]
[Termination "Kanthecarowin won by resignation"]

1. Nf3 {[%clk 0:03:01.9]} 1... Nf6 {[%clk 0:02:58.3]} 2. c4 {[%clk 0:03:02.7]}
2... g6 {[%clk 0:02:59.1]} 3. b4 {[%clk 0:03:03.6]} 3... Bg7 {[%clk 0:02:59.8]}
4. Bb2 {[%clk 0:03:05.2]} 4... O-O {[%clk 0:03:00.8]} 5. g3 {[%clk 0:03:06.6]}
5... d6 {[%clk 0:03:02]} 6. Bg2 {[%clk 0:03:07.9]} 6... Nbd7 {[%clk 0:03:01.6]}
7. O-O {[%clk 0:03:09]} 7... e5 {[%clk 0:03:02.7]} 8. d3 {[%clk 0:03:10.6]} 8...
Nh5 {[%clk 0:03:01]} 9. Qc2 {[%clk 0:03:04.8]} 9... f5 {[%clk 0:03:01.1]} 10. e3
{[%clk 0:03:05.9]} 10... Nhf6 {[%clk 0:02:59.6]} 11. Nbd2 {[%clk 0:03:04.4]}
11... Rb8 {[%clk 0:02:55.8]} 12. c5 {[%clk 0:03:05.2]} 12... Re8 {[%clk
0:02:42.6]} 13. cxd6 {[%clk 0:02:53.8]} 13... cxd6 {[%clk 0:02:44.5]} 14. Nc4
{[%clk 0:02:54.9]} 14... Nf8 {[%clk 0:02:32.2]} 15. Qb3 {[%clk 0:02:43.3]} 15...
b5 {[%clk 0:01:50.5]} 16. Ncxe5+ {[%clk 0:01:59.4]} 16... Be6 {[%clk 0:01:49.7]}
17. Nc6 {[%clk 0:02:00.5]} 17... Bxb3 {[%clk 0:01:42.4]} 18. Nxd8 {[%clk
0:02:01.1]} 18... Bd5 {[%clk 0:01:43.5]} 19. Rfc1 {[%clk 0:00:43]} 19... Rexd8
{[%clk 0:01:41.7]} 20. Rc7 {[%clk 0:00:44.1]} 20... Rd7 {[%clk 0:01:40.8]} 21.
Rac1 {[%clk 0:00:38.4]} 21... Rb7 {[%clk 0:01:33.7]} 22. Rc8 {[%clk 0:00:31.3]}
22... Ng4 {[%clk 0:01:30.8]} 23. Bxg7 {[%clk 0:00:16.9]} 23... Kxg7 {[%clk
0:01:32.7]} 24. Nd4 {[%clk 0:00:14.6]} 24... Bxg2 {[%clk 0:01:31.8]} 25. Kxg2
{[%clk 0:00:16.5]} 25... Ne5 {[%clk 0:01:27.3]} 26. R1c3 {[%clk 0:00:17.2]}
26... Re7 {[%clk 0:01:11.6]} 27. h3 {[%clk 0:00:16.3]} 27... Ne6 {[%clk
0:01:08.4]} 28. Nxe6+ {[%clk 0:00:14.8]} 28... Rxe6 {[%clk 0:01:10.3]} 29. R3c7+
{[%clk 0:00:14.5]} 29... Re7 {[%clk 0:01:11.7]} 30. Rxb7 {[%clk 0:00:13.4]}
30... Rxb7 {[%clk 0:01:12.8]} 31. Rc3 {[%clk 0:00:12.4]} 31... Kf6 {[%clk
0:01:13.5]} 32. f4 {[%clk 0:00:13.6]} 32... Nf7 {[%clk 0:01:14.1]} 33. Kf3
{[%clk 0:00:13.1]} 33... Ke6 {[%clk 0:01:15.4]} 34. e4 {[%clk 0:00:14.2]} 34...
fxe4+ {[%clk 0:01:16.2]} 35. dxe4 {[%clk 0:00:15.4]} 35... Kd7 {[%clk
0:01:16.1]} 36. Ra3 {[%clk 0:00:07.9]} 36... Nd8 {[%clk 0:01:14.4]} 37. Rd3
{[%clk 0:00:07.2]} 37... Ke6 {[%clk 0:01:13.4]} 38. e5 {[%clk 0:00:07.8]} 38...
Rd7 {[%clk 0:01:14.3]} 39. Ke4 {[%clk 0:00:05]} 39... d5+ {[%clk 0:01:12.9]} 40.
Kd4 {[%clk 0:00:05.2]} 40... Rc7 {[%clk 0:01:14.3]} 41. a3 {[%clk 0:00:03.8]}
41... Rc1 {[%clk 0:01:09.9]} 42. Ke3 {[%clk 0:00:04.5]} 42... Nc6 {[%clk
0:01:09.3]} 43. Kf3 {[%clk 0:00:05.4]} 43... d4 {[%clk 0:01:09.4]} 44. g4 {[%clk
0:00:06.7]} 44... Kd5 {[%clk 0:01:10.3]} 45. Rd2 {[%clk 0:00:06.5]} 45... Rc3+
{[%clk 0:01:10.1]} 46. Kf2 {[%clk 0:00:07.8]} 46... Ke4 {[%clk 0:01:11.3]} 47.
Re2+ {[%clk 0:00:08.9]} 47... Kxf4 {[%clk 0:01:12.1]} 48. e6 {[%clk 0:00:10.4]}
48... Re3 {[%clk 0:01:13.2]} 49. Rxe3 {[%clk 0:00:10.5]} 49... dxe3+ {[%clk
0:01:15.1]} 50. Ke2 {[%clk 0:00:12.1]} 50... Nd4+ {[%clk 0:01:16]} 51. Kd3
{[%clk 0:00:13.2]} 51... Nxe6 {[%clk 0:01:17.9]} 0-1

[Event "*** Titled Tuesday Blitz"]
[Site "Chess.com"]
[Date "2019.09.03"]
[Round "4"]
[White "DarkAlekhine"]
[Black "Kazmin_Dmitrij"]
[Result "1-0"]
[WhiteElo "2493"]
[BlackElo "2307"]
[TimeControl "180+2"]
[EndTime "15:52:26 PDT"]
[Termination "DarkAlekhine won by resignation"]

1. e4 {[%clk 0:03:01.9]} 1... d6 {[%clk 0:02:59.1]} 2. d4 {[%clk 0:03:02.1]}
2... Nf6 {[%clk 0:02:59.8]} 3. Nc3 {[%clk 0:03:03.6]} 3... e5 {[%clk 0:03:00.9]}
4. Nf3 {[%clk 0:03:04.6]} 4... Nbd7 {[%clk 0:03:01.2]} 5. Bc4 {[%clk 0:03:03.8]}
5... Be7 {[%clk 0:03:02.3]} 6. O-O {[%clk 0:03:03.9]} 6... O-O {[%clk
0:03:03.4]} 7. a4 {[%clk 0:03:05.3]} 7... c6 {[%clk 0:03:04.2]} 8. Re1 {[%clk
0:03:03.3]} 8... h6 {[%clk 0:03:04.8]} 9. a5 {[%clk 0:02:58.1]} 9... Nh7 {[%clk
0:03:04.4]} 10. d5 {[%clk 0:02:42.7]} 10... Ng5 {[%clk 0:03:01.5]} 11. Nd2
{[%clk 0:02:39.9]} 11... c5 {[%clk 0:02:47.3]} 12. Nf1 {[%clk 0:02:31.3]} 12...
Nh7 {[%clk 0:02:41.5]} 13. g3 {[%clk 0:02:22.4]} 13... Bg5 {[%clk 0:02:34]} 14.
Ne3 {[%clk 0:02:13.9]} 14... a6 {[%clk 0:02:04.4]} 15. h4 {[%clk 0:02:14.3]}
15... Bf6 {[%clk 0:01:56.9]} 16. Be2 {[%clk 0:02:06.4]} 16... Re8 {[%clk
0:01:50.5]} 17. Nc4 {[%clk 0:02:06.7]} 17... Ndf8 {[%clk 0:01:49.5]} 18. Bg4
{[%clk 0:02:06.1]} 18... Bxg4 {[%clk 0:01:44.2]} 19. Qxg4 {[%clk 0:02:08]} 19...
Kh8 {[%clk 0:01:42.8]} 20. Ra3 {[%clk 0:01:55.5]} 20... Rc8 {[%clk 0:01:41.1]}
21. Rb3 {[%clk 0:01:56.5]} 21... Rc7 {[%clk 0:01:40.7]} 22. Rb6 {[%clk
0:01:57.8]} 22... Rd7 {[%clk 0:01:34.5]} 23. Nd1 {[%clk 0:01:50]} 23... Ng6
{[%clk 0:01:21.3]} 24. Nde3 {[%clk 0:01:48]} 24... Ne7 {[%clk 0:01:20]} 25. Bd2
{[%clk 0:01:48.6]} 25... g6 {[%clk 0:01:16.4]} 26. b4 {[%clk 0:01:41.3]} 26...
cxb4 {[%clk 0:00:56.2]} 27. Rxb4 {[%clk 0:01:43.2]} 27... Bg7 {[%clk 0:00:51.4]}
28. Reb1 {[%clk 0:01:41.6]} 28... Nf6 {[%clk 0:00:47.8]} 29. Qf3 {[%clk
0:01:39.6]} 29... Qc8 {[%clk 0:00:44]} 30. Kg2 {[%clk 0:01:32]} 30... h5 {[%clk
0:00:42.1]} 31. Rb6 {[%clk 0:01:24.5]} 31... Qc7 {[%clk 0:00:37.1]} 32. Rxb7
{[%clk 0:01:24.4]} 32... Qc8 {[%clk 0:00:30.5]} 33. R7b2 {[%clk 0:01:18.5]}
33... Qc5 {[%clk 0:00:21]} 34. Bb4 {[%clk 0:01:14.9]} 34... Qd4 {[%clk
0:00:21.9]} 35. Nxd6 {[%clk 0:01:13]} 35... Rxd6 {[%clk 0:00:20]} 36. Bxd6
{[%clk 0:01:13.4]} 36... Nxe4 {[%clk 0:00:20.9]} 37. Rb4 {[%clk 0:01:08.1]}
37... Nd2 {[%clk 0:00:13.1]} 38. Qxf7 {[%clk 0:01:09]} 38... Rf8 {[%clk
0:00:11.5]} 39. Qxf8+ {[%clk 0:01:07.6]} 39... Bxf8 {[%clk 0:00:12.7]} 40. Rxd4
{[%clk 0:01:07.3]} 40... exd4 {[%clk 0:00:14]} 41. Rb8 {[%clk 0:01:07.5]} 41...
Kg7 {[%clk 0:00:12.4]} 42. Nf1 {[%clk 0:01:05.2]} 42... Ne4 {[%clk 0:00:11.4]}
43. Be5+ {[%clk 0:01:06.6]} 43... Kf7 {[%clk 0:00:11.6]} 44. Bxd4 {[%clk
0:01:08]} 44... Nxd5 {[%clk 0:00:12.8]} 45. Ne3 {[%clk 0:01:09]} 45... Nb4
{[%clk 0:00:10.8]} 46. f3 {[%clk 0:01:07.3]} 46... Nd2 {[%clk 0:00:09.8]} 47.
Rxf8+ {[%clk 0:01:08.1]} 47... Kxf8 {[%clk 0:00:10.1]} 48. Bc5+ {[%clk
0:01:09.7]} 1-0

[Event "*** Titled Tuesday Blitz"]
[Site "Chess.com"]
[Date "2019.09.03"]
[Round "4"]
[White "STARMATEcc"]
[Black "MarcoRiehle"]
[Result "1-0"]
[WhiteElo "2531"]
[BlackElo "2687"]
[TimeControl "180+2"]
[EndTime "15:52:33 PDT"]
[Termination "STARMATEcc won by checkmate"]

1. e4 {[%clk 0:03:01.8]} 1... e5 {[%clk 0:03:00.7]} 2. Nf3 {[%clk 0:03:02.4]}
2... Nf6 {[%clk 0:03:00.4]} 3. Nc3 {[%clk 0:02:56.9]} 3... Nc6 {[%clk
0:03:00.7]} 4. Bc4 {[%clk 0:02:51.6]} 4... Bc5 {[%clk 0:03:00.3]} 5. d3 {[%clk
0:02:50.1]} 5... d6 {[%clk 0:03:00.4]} 6. Bg5 {[%clk 0:02:48]} 6... h6 {[%clk
0:03:01.1]} 7. Bxf6 {[%clk 0:02:46.2]} 7... Qxf6 {[%clk 0:03:03]} 8. Nd5 {[%clk
0:02:47.3]} 8... Qd8 {[%clk 0:03:04.1]} 9. c3 {[%clk 0:02:47.5]} 9... Be6 {[%clk
0:02:56]} 10. b4 {[%clk 0:02:33.9]} 10... Bb6 {[%clk 0:02:56.1]} 11. a4 {[%clk
0:02:35.1]} 11... Bxd5 {[%clk 0:02:55.1]} 12. Bxd5 {[%clk 0:02:34]} 12... a6
{[%clk 0:02:50.2]} 13. a5 {[%clk 0:02:15.4]} 13... Ba7 {[%clk 0:02:50.1]} 14. d4
{[%clk 0:02:16.1]} 14... exd4 {[%clk 0:02:47]} 15. Bxc6+ {[%clk 0:02:16.1]}
15... bxc6 {[%clk 0:02:47.1]} 16. Nxd4 {[%clk 0:02:17.4]} 16... O-O {[%clk
0:02:43.1]} 17. Nxc6 {[%clk 0:01:39.1]} 17... Qe8 {[%clk 0:02:42.6]} 18. Qd5
{[%clk 0:01:37.2]} 18... Qd7 {[%clk 0:02:38.3]} 19. O-O {[%clk 0:01:33.8]} 19...
Qg4 {[%clk 0:02:38.5]} 20. c4 {[%clk 0:01:23.9]} 20... Rfe8 {[%clk 0:02:36.7]}
21. Rfe1 {[%clk 0:00:54.7]} 21... Qf4 {[%clk 0:02:28.7]} 22. Nxa7 {[%clk
0:00:48.8]} 22... Rxa7 {[%clk 0:02:28.6]} 23. b5 {[%clk 0:00:50.5]} 23... Re5
{[%clk 0:02:18.9]} 24. b6 {[%clk 0:00:31.8]} 24... cxb6 {[%clk 0:02:11.2]} 25.
axb6 {[%clk 0:00:32.7]} 25... Rae7 {[%clk 0:02:06.3]} 26. b7 {[%clk 0:00:27.9]}
26... Re8 {[%clk 0:01:45.6]} 27. Qxd6 {[%clk 0:00:28.5]} 27... Kh7 {[%clk
0:01:28.5]} 28. b8=Q {[%clk 0:00:26.2]} 28... Rxb8 {[%clk 0:01:28.3]} 29. Qxb8
{[%clk 0:00:26.8]} 29... Qf6 {[%clk 0:01:29.6]} 30. Qa7 {[%clk 0:00:24.1]} 30...
Re6 {[%clk 0:01:25.6]} 31. e5 {[%clk 0:00:23]} 31... Qf5 {[%clk 0:01:21.6]} 32.
Qd4 {[%clk 0:00:23.4]} 32... Rg6 {[%clk 0:01:21.2]} 33. Qe4 {[%clk 0:00:23.4]}
33... Qe6 {[%clk 0:01:18.6]} 34. c5 {[%clk 0:00:24.3]} 34... h5 {[%clk
0:01:08.2]} 35. Rac1 {[%clk 0:00:23.6]} 35... Kh6 {[%clk 0:01:06.7]} 36. c6
{[%clk 0:00:24.2]} 36... Rg4 {[%clk 0:01:07.6]} 37. Qe3+ {[%clk 0:00:22.3]}
37... Kh7 {[%clk 0:01:03]} 38. c7 {[%clk 0:00:23.1]} 38... Qc8 {[%clk
0:01:03.6]} 39. e6 {[%clk 0:00:23.2]} 39... Qb7 {[%clk 0:00:58.2]} 40. f3 {[%clk
0:00:23.5]} 40... fxe6 {[%clk 0:00:57.8]} 41. fxg4 {[%clk 0:00:23.9]} 41... hxg4
{[%clk 0:00:57]} 42. Qe4+ {[%clk 0:00:24.9]} 42... Kg8 {[%clk 0:00:31.2]} 43.
Qxb7 {[%clk 0:00:25.8]} 43... g5 {[%clk 0:00:33.1]} 44. c8=Q# {[%clk 0:00:26.5]}
1-0